Workbook

Sheet Instructions
A1: Manufacturer | B1: ConestogaLVT
A2: File as | B2: C
A3: Product Code | B3: L
A4: CCTD Effective Date | B4: 1/1/24 (Updated)
A5: Enter "MKTG" in discount for Customers who have invested in a display. For Others enter '0%" | I5: MKTG
A9: Enter your Company Name
B11: Click on "Index" to set the print area for the price list index
B12: Then you can send it to print
B15: Product Code | C15: All LVT | D15: Setting Materials | E15: Care & Maint.
C16: Displayed | D16: Stock Disc % | E16: Stock Disc %
B17: =+B3 -> L | C17: 0 | D17: 0 | E17: 0
B19: Click on "Your Cost" to set the print area for your personal cost report.
B20: Then you can send it to print
A23: Discount: | B23: To help establish your price list, enter the gross profit percent for each type of product.
B24: If you want to use Conestoga Tile's list price, leave them blank.
A26: Round Nickel: | B26: If you always want your price to round to the nearest nickel, enter "YES".
B27: If you enter "NO", it will NOT round to the nearest nickel.
A29: Ending Cents: | B29: If you always want your price to end with a certain cents, enter that cent value.
B30: If you leave it "blank" will NOT round to this cent value.
B32: Group | C32: GP Margin | D32: GP Margin % for | F32: Round Nickel | G32: add/subtract | H32: Ending Cents
B33: 1 | D33: Glue-Down | F33: Yes | G33: 0
B34: 2 | D34: Rigid Core | F34: Yes | G34: 0
B35: 3 | D35: Loose Lay | F35: Yes | G35: 0
B36: 4 | F36: Yes | G36: 0
B37: 5 | D37: Design Strips | F37: Yes | G37: 0
B38: 6 | D38: Care & Maintenance | F38: Yes | G38: 0
B39: 7 | D39: Setting Material | F39: Yes | G39: 0
B40: 8 | F40: Yes | G40: 0
B41: 9 | F41: Yes | G41: 0
A43: If you want to manually adjust your price list, hit "F5" and go to "Customer_Cost" to manually adjust pricing.
A44: You can enter a value in the column labeled "Adj." to change your price manually.
B46: Click on "Your Price Calculation" to set the print area for your personal cost calculation report.
B47: Then you can send it to print
B50: Click on "Your Price List" to set the print area for your personal price list.
B51: Then you can send it to print
H52: Yes
A54: If you have any questions on how to best use this spreadsheet, please feel free to contact
A55: Jim Vogel at (800) 422-6860, ext. 4201 or via e-mail at jimvogel@cctd.com

Sheet Index
F3: ="File '"&Instructions!B2&"' - "&Instructions!B1 -> File 'C' - ConestogaLVT
A6: ="Price List Index - "&Instructions!B4 -> Price List Index - 1/1/24 (Updated)
A11: Page | C11: Series | E11: Product Type | G11: Page | I11: Series | K11: Product Type
A49: This price list is available electronically on an Excel spreadsheet at www.conestogatile.com/pricelists.
A51: The spreadsheet has many special features to assist you. Apply your discount to generate your net costs for your purchasing department. Apply your standard gross margin percentage or custom prices to generate your own custom price list for your showroom. Print out individual price list for each series that can be attached to the back of your sample boards for easy reference.

Sheet Price List
B1: A1 | C1: Glue-Down | F1: Size | H1: Field | P1: SF/CTN | T1: 0.05 | U1: SF | V1: 0.05 | X1: 0.05 | Y1: =+Instructions!$C$17 -> 0 | AA1: new | AB1: =+T1 -> 0.05 | AC1: =(AF1-AB1)/AF1 -> 0 | AE1: 1 | AF1: =SUM(AM1:AO1)+AD1 -> 0.05 | AI1: =+AF1 -> 0.05 | AJ1: =+U1 -> SF | AM1: =ROUND(AB1/(1-VLOOKUP(AE1,Group,2,FALSE)),2) -> 0.05 | AN1: =IF(VLOOKUP(AE1,Group,5,FALSE)="YES",VLOOKUP(ROUND(ROUND(AM1,1)-AM1,2),Round,2,FALSE)+VLOOKUP(AE1,Group,6,FALSE),0) -> 0 | AO1: =IF(VLOOKUP(AE1,Group,7,FALSE)="",0,ROUND(AM1-0.04999,1)-AM1+AP1) -> 0 | AP1: =IF(VLOOKUP(AE1,Group,7,FALSE)="","",VLOOKUP(AE1,Group,7,FALSE)) ->  | AR1: X
B2: A2 | C2: Rigid Core | F2: Size | H2: Field | P2: SF/CTN | T2: 0.05 | U2: SF | V2: 0.05 | X2: 0.05 | Y2: =+Instructions!$C$17 -> 0 | AA2: new | AB2: 0.05 | AC2: =(AF2-AB2)/AF2 -> 0 | AE2: 2 | AF2: =SUM(AM2:AO2)+AD2 -> 0.05 | AI2: =+AF2 -> 0.05 | AJ2: SF | AM2: =ROUND(AB2/(1-VLOOKUP(AE2,Group,2,FALSE)),2) -> 0.05 | AN2: =IF(VLOOKUP(AE2,Group,5,FALSE)="YES",VLOOKUP(ROUND(ROUND(AM2,1)-AM2,2),Round,2,FALSE)+VLOOKUP(AE2,Group,6,FALSE),0) -> 0 | AO2: =IF(VLOOKUP(AE2,Group,7,FALSE)="",0,ROUND(AM2-0.04999,1)-AM2+AP2) -> 0 | AP2: =IF(VLOOKUP(AE2,Group,7,FALSE)="","",VLOOKUP(AE2,Group,7,FALSE)) ->  | AR2: X
B3: A3 | C3: Loose Lay | F3: Size | H3: Field | P3: SF/CTN | T3: 0.05 | U3: SF | V3: 0.05 | X3: 0.05 | Y3: =+Instructions!$C$17 -> 0 | AA3: new | AB3: 0.05 | AC3: 0 | AE3: 3 | AF3: 0.05 | AI3: 0.05 | AJ3: SF | AM3: 0.05 | AN3: 0 | AO3: 0 | AR3: X
B4: C4 | C4: Trim | F4: Size | H4: Shape | T4: 0.05 | U4: EA | V4: 0.05 | X4: 0.05 | Y4: =+Instructions!$C$17 -> 0 | AA4: new | AB4: 0.05 | AC4: =(AF4-AB4)/AF4 -> 0 | AE4: 4 | AF4: =SUM(AM4:AO4)+AD4 -> 0.05 | AI4: =+AF4 -> 0.05 | AJ4: EA | AM4: =ROUND(AB4/(1-VLOOKUP(AE4,Group,2,FALSE)),2) -> 0.05 | AN4: =IF(VLOOKUP(AE4,Group,5,FALSE)="YES",VLOOKUP(ROUND(ROUND(AM4,1)-AM4,2),Round,2,FALSE)+VLOOKUP(AE4,Group,6,FALSE),0) -> 0 | AO4: =IF(VLOOKUP(AE4,Group,7,FALSE)="",0,ROUND(AM4-0.04999,1)-AM4+AP4) -> 0 | AP4: =IF(VLOOKUP(AE4,Group,7,FALSE)="","",VLOOKUP(AE4,Group,7,FALSE)) ->  | AR4: X
B5: A5 | C5: Design Strip | F5: Size | H5: Shape | T5: 0.05 | U5: EA | V5: 0 | X5: 0.05 | Y5: =+Instructions!$C$17 -> 0 | AA5: new | AB5: 0.05 | AC5: 0 | AE5: 5 | AF5: 0.05 | AI5: 0.05 | AJ5: EA | AM5: 0.05 | AN5: 0 | AO5: 0 | AR5: X
B6: A6 | C6: Care & Maintenance | F6: Size | H6: Shape | T6: 0.05 | U6: EA | V6: 0 | X6: 0.05 | Y6: =+Instructions!$E$17 -> 0 | AA6: new | AB6: 0.05 | AC6: =(AF6-AB6)/AF6 -> 0 | AE6: 6 | AF6: =SUM(AM6:AO6)+AD6 -> 0.05 | AI6: =+AF6 -> 0.05 | AJ6: EA | AM6: =ROUND(AB6/(1-VLOOKUP(AE6,Group,2,FALSE)),2) -> 0.05 | AN6: =IF(VLOOKUP(AE6,Group,5,FALSE)="YES",VLOOKUP(ROUND(ROUND(AM6,1)-AM6,2),Round,2,FALSE)+VLOOKUP(AE6,Group,6,FALSE),0) -> 0 | AO6: =IF(VLOOKUP(AE6,Group,7,FALSE)="",0,ROUND(AM6-0.04999,1)-AM6+AP6) -> 0 | AP6: =IF(VLOOKUP(AE6,Group,7,FALSE)="","",VLOOKUP(AE6,Group,7,FALSE)) ->  | AR6: X
B7: A7 | C7: Setting Material | F7: Size | H7: Description | T7: 0.05 | U7: EA | V7: 0 | X7: 0.05 | Y7: =+Instructions!$D$17 -> 0 | AA7: new | AB7: 0.05 | AC7: 0 | AE7: 7 | AF7: 0.05 | AI7: 0.05 | AJ7: EA | AM7: 0.05 | AN7: 0 | AO7: 0 | AR7: X
C8: Format | Q8: Stock | R8: a | T8: 1000 | U8: ABC | V8: 1000 | X8: 1000 | Y8: 0.1 | AA8: ABC | AB8: 1000 | AC8: 0.1 | AD8: 10 | AF8: 1000 | AI8: 1000 | AR8: X
AR9: X
AR10: X
D11: Customer Cost | X11: Cost Calc | AA11: Customer Selling Price Calculation | AH11: Retail P/L | AR11: X
AR12: X
D13: ="File '"&Instructions!B2&"' - "&Instructions!B1 -> File 'C' - ConestogaLVT | V13: Cost | AF13: =+$D$13 -> File 'C' - ConestogaLVT | AJ13: Price List | AR13: X
D14: =IF(Instructions!C9="","",+Instructions!C9) ->  | V14: 1/1/24 (Updated) | AF14: Retail Price Calculations | AJ14: =+Instructions!$B$4 -> 1/1/24 (Updated) | AR14: X
AD15: =TODAY() -> 2024-02-07 | AR15: X
D16: ="Product Code '"&Instructions!B3&"'" -> Product Code 'L' | T16: Net Cost | AF16: =IF(Instructions!$C$9="","",Instructions!$C$9) ->  | AR16: X
AR17: X
D18: Sizes & Shapes | O18: Full Carton | Q18: Stock | R18: Note | T18: Net Unit | U18: U/M | V18: >1000 sf | X18: Unit Cost | Y18: Disc. | AA18: Chg | AB18: Net Cost | AC18: GP% | AD18: Adj. | AE18: Group | AF18: Price | AI18: List Price | AJ18: U/M | AM18: Calc Price | AN18: .05 Round | AO18: Cents | AP18: Round to | AR18: X
D19: ALL ITEMS MARKED WITH PACKAGING QUANTITY ARE SOLD IN MULTIPLES OF THAT QUANTITY ONLY | AR19: X
AR20: X
D21: BEL AIR - Luxury Vinyl Tiles | K21: Discontinued 2/6/24 | P21: Item # Lookup: | Q21: COBE | AR21: X
AR22: X
E23: Colors: | F23: CONT200 Brown Stone | J23: CONT203 Granite Stone | AR23: X
F24: CONT202 Chalk Stone | J24: CONT201 Misty Stone | AR24: X
AR25: X
B26: A1 | C26: Glue-Down | F26: 18" x 18" x 2.5mm | H26: 20mil | J26: Glue-Down | P26: 36.00 SF/CTN | Q26: Stock | T26: 3.35 | U26: SF | V26: 3.02 | X26: 3.35 | Y26: =+Instructions!$C$17 -> 0 | AB26: =+T26 -> 3.35 | AC26: =(AF26-AB26)/AF26 -> 0 | AE26: 1 | AF26: =SUM(AM26:AO26)+AD26 -> 3.35 | AI26: =+AF26 -> 3.35 | AJ26: =+U26 -> SF | AM26: =ROUND(AB26/(1-VLOOKUP(AE26,Group,2,FALSE)),2) -> 3.35 | AN26: =IF(VLOOKUP(AE26,Group,5,FALSE)="YES",VLOOKUP(ROUND(ROUND(AM26,1)-AM26,2),Round,2,FALSE)+VLOOKUP(AE26,Group,6,FALSE),0) -> 0 | AO26: =IF(VLOOKUP(AE26,Group,7,FALSE)="",0,ROUND(AM26-0.04999,1)-AM26+AP26) -> 0 | AP26: =IF(VLOOKUP(AE26,Group,7,FALSE)="","",VLOOKUP(AE26,Group,7,FALSE)) ->  | AR26: X
AR27: X
D28: BLOOMINGDALE - Luxury Vinyl Plank | P28: Item # Lookup: | Q28: COBL | AR28: X
AR29: X
E30: Colors: | F30: COBLANT Antique Willow COBLENG English Toffee COBLSED Sedona | AR30: X
AR31: X
B32: B2 | C32: Rigid Core | F32: 9" x 60" x 7.0mm | H32: 20mil | J32: Rigid Core - WPC | P32: 33.75 SF/CTN | Q32: Stock | T32: 4 | U32: SF | V32: 3.6 | X32: 4 | Y32: =+Instructions!$C$17 -> 0 | AB32: =+T32 -> 4 | AC32: =(AF32-AB32)/AF32 -> 0 | AE32: 2 | AF32: =SUM(AM32:AO32)+AD32 -> 4 | AI32: =+AF32 -> 4 | AJ32: =+U32 -> SF | AM32: =ROUND(AB32/(1-VLOOKUP(AE32,Group,2,FALSE)),2) -> 4 | AN32: =IF(VLOOKUP(AE32,Group,5,FALSE)="YES",VLOOKUP(ROUND(ROUND(AM32,1)-AM32,2),Round,2,FALSE)+VLOOKUP(AE32,Group,6,FALSE),0) -> 0 | AO32: =IF(VLOOKUP(AE32,Group,7,FALSE)="",0,ROUND(AM32-0.04999,1)-AM32+AP32) -> 0 | AP32: =IF(VLOOKUP(AE32,Group,7,FALSE)="","",VLOOKUP(AE32,Group,7,FALSE)) ->  | AR32: X
D34: BLOSSOM HILL - Luxury Vinyl Plank | K34: Discontinued 2/6/24 | P34: Item # Lookup: | Q34: COBH | AR34: X
AR35: X
E36: Colors: | F36: CON148 Ash Oak | J36: CON123 Harvest Oak | N36: CON120 Puritan Oak | AR36: X
F37: CON128 Carbon Oak | J37: CON150 Midtone Oak | N37: CON145 Sandy Oak | AR37: X
F38: CON151 Earthy Oak | J38: CON142 Mountain Oak | AR38: X
F39: CON121 Grey Oak | J39: CON147 Pale Oak | AR39: X
AR40: X
B41: A1 | C41: Glue-Down | F41: 7" x 48" x 2.0mm | H41: 12mil | J41: Glue-Down | P41: 51.34 SF/CTN | Q41: Stock | T41: 2.7 | U41: SF | V41: 2.43 | X41: 2.7 | Y41: =+Instructions!$C$17 -> 0 | AB41: =+T41 -> 2.7 | AC41: =(AF41-AB41)/AF41 -> 0 | AE41: 1 | AF41: =SUM(AM41:AO41)+AD41 -> 2.7 | AI41: =+AF41 -> 2.7 | AJ41: =+U41 -> SF | AM41: =ROUND(AB41/(1-VLOOKUP(AE41,Group,2,FALSE)),2) -> 2.7 | AN41: =IF(VLOOKUP(AE41,Group,5,FALSE)="YES",VLOOKUP(ROUND(ROUND(AM41,1)-AM41,2),Round,2,FALSE)+VLOOKUP(AE41,Group,6,FALSE),0) -> 0 | AO41: =IF(VLOOKUP(AE41,Group,7,FALSE)="",0,ROUND(AM41-0.04999,1)-AM41+AP41) -> 0 | AP41: =IF(VLOOKUP(AE41,Group,7,FALSE)="","",VLOOKUP(AE41,Group,7,FALSE)) ->  | AR41: X
AR42: X
E43: Colors: | F43: CONLL148 Ash Oak | J43: CONLL123 Harvest Oak | N43: CONLL120 Puritan Oak | AR43: X
F44: CONLL128 Carbon Oak | J44: CONLL150 Midtone Oak | N44: CONLL145 Sandy Oak | AR44: X
F45: CONLL151 Earthy Oak | J45: CONLL142 Mountain Oak | AR45: X
F46: CONLL121 Grey Oak | J46: CONLL147 Pale Oak | AR46: X
AR47: X
B48: A3 | C48: Loose Lay | F48: 9.9" x 41.3" x 4.5mm | H48: 20mil | J48: Loose Lay | P48: 33.90 SF/CTN | Q48: Stock | T48: 5.1 | U48: SF | V48: 4.59 | X48: 5.1 | Y48: =+Instructions!$C$17 -> 0 | AB48: =+T48 -> 5.1 | AC48: =(AF48-AB48)/AF48 -> 0 | AE48: 3 | AF48: =SUM(AM48:AO48)+AD48 -> 5.1 | AI48: =+AF48 -> 5.1 | AJ48: =+U48 -> SF | AM48: =ROUND(AB48/(1-VLOOKUP(AE48,Group,2,FALSE)),2) -> 5.1 | AN48: =IF(VLOOKUP(AE48,Group,5,FALSE)="YES",VLOOKUP(ROUND(ROUND(AM48,1)-AM48,2),Round,2,FALSE)+VLOOKUP(AE48,Group,6,FALSE),0) -> 0 | AO48: =IF(VLOOKUP(AE48,Group,7,FALSE)="",0,ROUND(AM48-0.04999,1)-AM48+AP48) -> 0 | AP48: =IF(VLOOKUP(AE48,Group,7,FALSE)="","",VLOOKUP(AE48,Group,7,FALSE)) ->  | AR48: X
AR49: X
E50: Colors: | F50: CONRC148 Ash Oak | J50: CONRC123 Harvest Oak | N50: CONRC120 Puritan Oak | AR50: X
F51: CONRC128 Carbon Oak | J51: CONRC150 Midtone Oak | N51: CONRC145 Sandy Oak | AR51: X
F52: CONRC151 Earthy Oak | J52: CONRC142 Mountain Oak | AR52: X
F53: CONRC121 Grey Oak | J53: CONRC147 Pale Oak | AR53: X
AR54: X
B55: A2 | C55: Rigid Core | F55: 7" x 48" x 4.5mm | H55: 12mil | J55: Rigid Core | P55: 26.56 SF/CTN | Q55: Stock | T55: 4.1 | U55: SF | V55: 3.69 | X55: 4.1 | Y55: =+Instructions!$C$17 -> 0 | AB55: =+T55 -> 4.1 | AC55: =(AF55-AB55)/AF55 -> 0 | AE55: 2 | AF55: =SUM(AM55:AO55)+AD55 -> 4.1 | AI55: =+AF55 -> 4.1 | AJ55: =+U55 -> SF | AM55: =ROUND(AB55/(1-VLOOKUP(AE55,Group,2,FALSE)),2) -> 4.1 | AN55: =IF(VLOOKUP(AE55,Group,5,FALSE)="YES",VLOOKUP(ROUND(ROUND(AM55,1)-AM55,2),Round,2,FALSE)+VLOOKUP(AE55,Group,6,FALSE),0) -> 0 | AO55: =IF(VLOOKUP(AE55,Group,7,FALSE)="",0,ROUND(AM55-0.04999,1)-AM55+AP55) -> 0 | AP55: =IF(VLOOKUP(AE55,Group,7,FALSE)="","",VLOOKUP(AE55,Group,7,FALSE)) ->  | AR55: X
AR56: X
D57: DEL RAY - Luxury Vinyl Plank | P57: Item # Lookup: | Q57: CODR | AR57: X
AR58: X
E59: Colors: | F59: CODRASH Ash CODRBAR Barnwood CODRCAY Cayenne | AR59: X
AR60: X
B61: B2 | C61: Rigid Core | F61: 7" x 48" x 7.5mm | H61: 20mil | J61: Rigid Core - WPC | P61: 33.09 SF/CTN | Q61: Stock | R61: a | T61: 4.2 | U61: SF | V61: 3.78 | X61: 4.2 | Y61: =+Instructions!$C$17 -> 0 | AB61: =+T61 -> 4.2 | AC61: =(AF61-AB61)/AF61 -> 0 | AE61: 2 | AF61: =SUM(AM61:AO61)+AD61 -> 4.2 | AI61: =+AF61 -> 4.2 | AJ61: =+U61 -> SF | AM61: =ROUND(AB61/(1-VLOOKUP(AE61,Group,2,FALSE)),2) -> 4.2 | AN61: =IF(VLOOKUP(AE61,Group,5,FALSE)="YES",VLOOKUP(ROUND(ROUND(AM61,1)-AM61,2),Round,2,FALSE)+VLOOKUP(AE61,Group,6,FALSE),0) -> 0 | AO61: =IF(VLOOKUP(AE61,Group,7,FALSE)="",0,ROUND(AM61-0.04999,1)-AM61+AP61) -> 0 | AP61: =IF(VLOOKUP(AE61,Group,7,FALSE)="","",VLOOKUP(AE61,Group,7,FALSE)) ->  | AR61: X
AR62: X
E63: Note: | F63: a) Packaging is changing from 18.91 SF/CTN to 33.09 SF/CTN as inventory with old packaging is depleted. | AR63: X
AR64: X
D65: FEDERAL HILL - Luxury Vinyl Plank | P65: Item # Lookup: | Q65: COFH | AR65: X
AR66: X
E67: Colors: | F67: COFHESP Espresso | J67: COFHKIN Kings Canyon | AR67: X
F68: COFHHEM Hemlock | J68: COFHRIV River Birch | AR68: X
AR69: X
B70: B2 | C70: Rigid Core | F70: 7" x 48" x 5.0mm | H70: 20mil | J70: Rigid Core - SPC | P70: 23.64 SF/CTN | Q70: Stock | T70: 3.4 | U70: SF | V70: 3.06 | X70: 3.4 | Y70: =+Instructions!$C$17 -> 0 | AB70: =+T70 -> 3.4 | AC70: =(AF70-AB70)/AF70 -> 0 | AE70: 2 | AF70: =SUM(AM70:AO70)+AD70 -> 3.4 | AI70: =+AF70 -> 3.4 | AJ70: =+U70 -> SF | AM70: =ROUND(AB70/(1-VLOOKUP(AE70,Group,2,FALSE)),2) -> 3.4 | AN70: =IF(VLOOKUP(AE70,Group,5,FALSE)="YES",VLOOKUP(ROUND(ROUND(AM70,1)-AM70,2),Round,2,FALSE)+VLOOKUP(AE70,Group,6,FALSE),0) -> 0 | AO70: =IF(VLOOKUP(AE70,Group,7,FALSE)="",0,ROUND(AM70-0.04999,1)-AM70+AP70) -> 0 | AP70: =IF(VLOOKUP(AE70,Group,7,FALSE)="","",VLOOKUP(AE70,Group,7,FALSE)) ->  | AR70: X
AR71: X
E72: Note: | F72: a) This item is transitioning from 6.0mm to 5.0mm in thickness as inventories of the old thickness are depleted. | AR72: X
F73: (Packaging for the old 7" x 48" x 6.0mm is 18.91 SF/CTN.) Check with Customer Service to be sure which | AR73: X
F74: packaging amount you will be receiving. | AR74: X
AR75: X
D76: MICHAUX - Luxury Vinyl Plank w/ QXT Technology | P76: Item # Lookup: | Q76: COMI | AR76: X
AR77: X
E78: Colors: | F78: Amsterdam | H78: Cancun | J78: Dublin | L78: Tulum | AR78: X
F79: Berlin | H79: Copa | J79: Sydney | L79: Venice
AR80: X
B81: C2 | C81: Rigid Core | F81: 7" x 48" x 4.7mm | H81: 12mil | J81: Rigid Core - SPC | P81: 28.37 SF/CTN | Q81: Stock | T81: 2.9 | U81: SF | V81: 2.61 | X81: 2.9 | Y81: =+Instructions!$C$17 -> 0 | AA81: new | AB81: =+T81 -> 2.9 | AC81: =(AF81-AB81)/AF81 -> 0 | AE81: 2 | AF81: =SUM(AM81:AO81)+AD81 -> 2.9 | AI81: =+AF81 -> 2.9 | AJ81: =+U81 -> SF | AM81: =ROUND(AB81/(1-VLOOKUP(AE81,Group,2,FALSE)),2) -> 2.9 | AN81: =IF(VLOOKUP(AE81,Group,5,FALSE)="YES",VLOOKUP(ROUND(ROUND(AM81,1)-AM81,2),Round,2,FALSE)+VLOOKUP(AE81,Group,6,FALSE),0) -> 0 | AO81: =IF(VLOOKUP(AE81,Group,7,FALSE)="",0,ROUND(AM81-0.04999,1)-AM81+AP81) -> 0 | AP81: =IF(VLOOKUP(AE81,Group,7,FALSE)="","",VLOOKUP(AE81,Group,7,FALSE)) ->  | AR81: X
AR82: X
B83: C4 | C83: Trim | F83: 7'10" long | J83: 3-in-1 Molding | T83: 34.8 | U83: EA | X83: 34.8 | Y83: =+Instructions!$C$17 -> 0 | AA83: new | AB83: =+T83 -> 34.8 | AC83: =(AF83-AB83)/AF83 -> 0 | AE83: 4 | AF83: =SUM(AM83:AO83)+AD83 -> 34.8 | AI83: =+AF83 -> 34.8 | AJ83: =+U83 -> EA | AM83: =ROUND(AB83/(1-VLOOKUP(AE83,Group,2,FALSE)),2) -> 34.8 | AN83: =IF(VLOOKUP(AE83,Group,5,FALSE)="YES",VLOOKUP(ROUND(ROUND(AM83,1)-AM83,2),Round,2,FALSE)+VLOOKUP(AE83,Group,6,FALSE),0) -> 0 | AO83: =IF(VLOOKUP(AE83,Group,7,FALSE)="",0,ROUND(AM83-0.04999,1)-AM83+AP83) -> 0 | AP83: =IF(VLOOKUP(AE83,Group,7,FALSE)="","",VLOOKUP(AE83,Group,7,FALSE)) ->  | AR83: X
B84: C4 | C84: Trim | F84: 7'10" long | J84: Flush Stair Nose | T84: 73.3 | U84: EA | X84: 73.3 | Y84: =+Instructions!$C$17 -> 0 | AA84: new | AB84: =+T84 -> 73.3 | AC84: 0 | AE84: 4 | AF84: 73.3 | AI84: 73.3 | AJ84: =+U84 -> EA | AM84: 73.3 | AN84: 0 | AO84: 0 | AR84: X
D86: PATAPSCO - Luxury Vinyl Plank w/ QXT Technology | P86: Item # Lookup: | Q86: COPA | AR86: X
AR87: X
E88: Colors: | F88: Antiqua | G88: Mile High | J88: Rehoboth | L88: Venice Beach | AR88: X
F89: Mancora | G89: Palomino | J89: Santorini | L89: Wildwood Crest
AR90: X
B91: C2 | C91: Rigid Core | F91: 7" x 48" x 5mm | H91: 20mil | J91: Rigid Core - SPC | P91: 24.03 SF/CTN | Q91: Stock | T91: 3.3 | U91: SF | V91: 2.97 | X91: 3.3 | Y91: =+Instructions!$C$17 -> 0 | AA91: new | AB91: =+T91 -> 3.3 | AC91: =(AF91-AB91)/AF91 -> 0 | AE91: 2 | AF91: =SUM(AM91:AO91)+AD91 -> 3.3 | AI91: =+AF91 -> 3.3 | AJ91: =+U91 -> SF | AM91: =ROUND(AB91/(1-VLOOKUP(AE91,Group,2,FALSE)),2) -> 3.3 | AN91: =IF(VLOOKUP(AE91,Group,5,FALSE)="YES",VLOOKUP(ROUND(ROUND(AM91,1)-AM91,2),Round,2,FALSE)+VLOOKUP(AE91,Group,6,FALSE),0) -> 0 | AO91: =IF(VLOOKUP(AE91,Group,7,FALSE)="",0,ROUND(AM91-0.04999,1)-AM91+AP91) -> 0 | AP91: =IF(VLOOKUP(AE91,Group,7,FALSE)="","",VLOOKUP(AE91,Group,7,FALSE)) ->  | AR91: X
AR92: X
B93: C4 | C93: Trim | F93: 7'10" long | J93: 3-in-1 Molding | T93: 34.8 | U93: EA | X93: 34.8 | Y93: =+Instructions!$C$17 -> 0 | AA93: new | AB93: =+T93 -> 34.8 | AC93: =(AF93-AB93)/AF93 -> 0 | AE93: 4 | AF93: =SUM(AM93:AO93)+AD93 -> 34.8 | AI93: =+AF93 -> 34.8 | AJ93: =+U93 -> EA | AM93: =ROUND(AB93/(1-VLOOKUP(AE93,Group,2,FALSE)),2) -> 34.8 | AN93: =IF(VLOOKUP(AE93,Group,5,FALSE)="YES",VLOOKUP(ROUND(ROUND(AM93,1)-AM93,2),Round,2,FALSE)+VLOOKUP(AE93,Group,6,FALSE),0) -> 0 | AO93: =IF(VLOOKUP(AE93,Group,7,FALSE)="",0,ROUND(AM93-0.04999,1)-AM93+AP93) -> 0 | AP93: =IF(VLOOKUP(AE93,Group,7,FALSE)="","",VLOOKUP(AE93,Group,7,FALSE)) ->  | AR93: X
B94: C4 | C94: Trim | F94: 7'10" long | J94: Flush Stair Nose | T94: 73.3 | U94: EA | X94: 73.3 | Y94: =+Instructions!$C$17 -> 0 | AA94: new | AB94: =+T94 -> 73.3 | AC94: 0 | AE94: 4 | AF94: 73.3 | AI94: 73.3 | AJ94: =+U94 -> EA | AM94: 73.3 | AN94: 0 | AO94: 0 | AR94: X
D96: PHEASANT HILL - Luxury Vinyl Plank | K96: Discontinued 2/6/24 | P96: Item # Lookup: | Q96: COPH | AR96: X
AR97: X
E98: Colors: | F98: CONBU101 Carmel Oak | J98: CONBU102 Salem Oak | AR98: X
F99: CONBU103 Chocolate Oak | J99: CONBU100 Sunny Oak | AR99: X
AR100: X
B101: A1 | C101: Glue-Down | F101: 7" x 36" x 2.5mm | H101: 20mil | J101: Glue-Down | P101: 35.63 SF/CTN | Q101: Stock | T101: 3.35 | U101: SF | V101: 3.02 | X101: 3.35 | Y101: =+Instructions!$C$17 -> 0 | AB101: =+T101 -> 3.35 | AC101: =(AF101-AB101)/AF101 -> 0 | AE101: 1 | AF101: =SUM(AM101:AO101)+AD101 -> 3.35 | AI101: =+AF101 -> 3.35 | AJ101: =+U101 -> SF | AM101: =ROUND(AB101/(1-VLOOKUP(AE101,Group,2,FALSE)),2) -> 3.35 | AN101: =IF(VLOOKUP(AE101,Group,5,FALSE)="YES",VLOOKUP(ROUND(ROUND(AM101,1)-AM101,2),Round,2,FALSE)+VLOOKUP(AE101,Group,6,FALSE),0) -> 0 | AO101: =IF(VLOOKUP(AE101,Group,7,FALSE)="",0,ROUND(AM101-0.04999,1)-AM101+AP101) -> 0 | AP101: =IF(VLOOKUP(AE101,Group,7,FALSE)="","",VLOOKUP(AE101,Group,7,FALSE)) ->  | AR101: X
AR102: X
D103: SHENANDOAH - Luxury Vinyl Plank w/ QXT Technology | P103: Item # Lookup: | Q103: COSH | AR103: X
AR104: X
E105: Colors: | F105: Biscayne | H105: Brighton | J105: Loredo | L105: Oakwood | AR105: X
F106: Blue Sands | H106: Cannes | J106: Myrtle Beach Whitehaven
AR107: X
B108: C2 | C108: Rigid Core | F108: 7" x 48" x 5mm | H108: 20mil | J108: Rigid Core - SPC | P108: 24.03 SF/CTN | Q108: Stock | T108: 3.3 | U108: SF | V108: 2.97 | X108: 3.3 | Y108: =+Instructions!$C$17 -> 0 | AA108: new | AB108: =+T108 -> 3.3 | AC108: =(AF108-AB108)/AF108 -> 0 | AE108: 2 | AF108: =SUM(AM108:AO108)+AD108 -> 3.3 | AI108: =+AF108 -> 3.3 | AJ108: =+U108 -> SF | AM108: =ROUND(AB108/(1-VLOOKUP(AE108,Group,2,FALSE)),2) -> 3.3 | AN108: =IF(VLOOKUP(AE108,Group,5,FALSE)="YES",VLOOKUP(ROUND(ROUND(AM108,1)-AM108,2),Round,2,FALSE)+VLOOKUP(AE108,Group,6,FALSE),0) -> 0 | AO108: =IF(VLOOKUP(AE108,Group,7,FALSE)="",0,ROUND(AM108-0.04999,1)-AM108+AP108) -> 0 | AP108: =IF(VLOOKUP(AE108,Group,7,FALSE)="","",VLOOKUP(AE108,Group,7,FALSE)) ->  | AR108: X
AR109: X
B110: C4 | C110: Trim | F110: 7'10" long | J110: 3-in-1 Molding | T110: 34.8 | U110: EA | X110: 34.8 | Y110: =+Instructions!$C$17 -> 0 | AA110: new | AB110: =+T110 -> 34.8 | AC110: =(AF110-AB110)/AF110 -> 0 | AE110: 4 | AF110: =SUM(AM110:AO110)+AD110 -> 34.8 | AI110: =+AF110 -> 34.8 | AJ110: =+U110 -> EA | AM110: =ROUND(AB110/(1-VLOOKUP(AE110,Group,2,FALSE)),2) -> 34.8 | AN110: =IF(VLOOKUP(AE110,Group,5,FALSE)="YES",VLOOKUP(ROUND(ROUND(AM110,1)-AM110,2),Round,2,FALSE)+VLOOKUP(AE110,Group,6,FALSE),0) -> 0 | AO110: =IF(VLOOKUP(AE110,Group,7,FALSE)="",0,ROUND(AM110-0.04999,1)-AM110+AP110) -> 0 | AP110: =IF(VLOOKUP(AE110,Group,7,FALSE)="","",VLOOKUP(AE110,Group,7,FALSE)) ->  | AR110: X
B111: C4 | C111: Trim | F111: 7'10" long | J111: Flush Stair Nose | T111: 73.3 | U111: EA | X111: 73.3 | Y111: =+Instructions!$C$17 -> 0 | AA111: new | AB111: =+T111 -> 73.3 | AC111: 0 | AE111: 4 | AF111: 73.3 | AI111: 73.3 | AJ111: =+U111 -> EA | AM111: 73.3 | AN111: 0 | AO111: 0 | AR111: X
D113: SKYLINE DRIVE - Luxury Vinyl Plank | P113: Item # Lookup: | Q113: COSK | AR113: X
AR114: X
E115: Colors: | F115: COSKBRI Bristol | AR115: X
AR116: X
B117: A2 | C117: Rigid Core | F117: 7" x 48" x 4.2mm | H117: 12mil | J117: Rigid Core - SPC | P117: 23.64 SF/CTN | T117: 2.85 | U117: SF | V117: 2.57 | X117: 2.85 | Y117: =+Instructions!$C$17 -> 0 | AB117: =+T117 -> 2.85 | AC117: =(AF117-AB117)/AF117 -> 0 | AE117: 2 | AF117: =SUM(AM117:AO117)+AD117 -> 2.85 | AI117: =+AF117 -> 2.85 | AJ117: =+U117 -> SF | AM117: =ROUND(AB117/(1-VLOOKUP(AE117,Group,2,FALSE)),2) -> 2.85 | AN117: =IF(VLOOKUP(AE117,Group,5,FALSE)="YES",VLOOKUP(ROUND(ROUND(AM117,1)-AM117,2),Round,2,FALSE)+VLOOKUP(AE117,Group,6,FALSE),0) -> 0 | AO117: =IF(VLOOKUP(AE117,Group,7,FALSE)="",0,ROUND(AM117-0.04999,1)-AM117+AP117) -> 0 | AP117: =IF(VLOOKUP(AE117,Group,7,FALSE)="","",VLOOKUP(AE117,Group,7,FALSE)) ->  | AR117: X
AR118: X
D119: SUSQUEHANNA - Luxury Vinyl Plank | P119: Item # Lookup: | Q119: COSU | AR119: X
AR120: X
E121: Colors: | F121: COSUTAM Tamarack | AR121: X
AR122: X
B123: A2 | C123: Rigid Core | F123: 9" x 48" x 7.0mm | H123: 20mil | J123: Rigid Core - SPC | P123: 29.47 SF/CTN | T123: 4.1 | U123: SF | V123: 3.69 | X123: 4.1 | Y123: =+Instructions!$C$17 -> 0 | AB123: =+T123 -> 4.1 | AC123: =(AF123-AB123)/AF123 -> 0 | AE123: 2 | AF123: =SUM(AM123:AO123)+AD123 -> 4.1 | AI123: =+AF123 -> 4.1 | AJ123: =+U123 -> SF | AM123: =ROUND(AB123/(1-VLOOKUP(AE123,Group,2,FALSE)),2) -> 4.1 | AN123: =IF(VLOOKUP(AE123,Group,5,FALSE)="YES",VLOOKUP(ROUND(ROUND(AM123,1)-AM123,2),Round,2,FALSE)+VLOOKUP(AE123,Group,6,FALSE),0) -> 0 | AO123: =IF(VLOOKUP(AE123,Group,7,FALSE)="",0,ROUND(AM123-0.04999,1)-AM123+AP123) -> 0 | AP123: =IF(VLOOKUP(AE123,Group,7,FALSE)="","",VLOOKUP(AE123,Group,7,FALSE)) ->  | AR123: X
AR124: X
AR125: X
D126: TRIM PIECES | AR126: X
AR127: X
D128: Trim pieces can be purchased through Versatrim.com. Use the ConestogaLVT Color Number for your product search on | AR128: X
D129: their website. | AR129: X
AR130: X
D131: DESIGN STRIPS | AR131: X
AR132: X
D133: DESIGN STRIPS | P133: Item # Lookup: | Q133: CODS | AR133: X
AR134: X
E135: Colors: | F135: Beige | H135: Brown | K135: Ivory | AR135: X
F136: Black | H136: Chestnut | K136: Taupe | AR136: X
AR137: X
B138: A5 | C138: Design Strip | F138: 3 mm x 3' x 2.0mm | H138: 3' Design Strip | P138: 25 EA/CTN | T138: 0.8 | U138: EA | X138: 0.8 | Y138: =+Instructions!$C$17 -> 0 | AB138: =+T138 -> 0.8 | AC138: =(AF138-AB138)/AF138 -> 0 | AE138: 5 | AF138: =SUM(AM138:AO138)+AD138 -> 0.8 | AI138: =+AF138 -> 0.8 | AJ138: =+U138 -> EA | AM138: =ROUND(AB138/(1-VLOOKUP(AE138,Group,2,FALSE)),2) -> 0.8 | AN138: =IF(VLOOKUP(AE138,Group,5,FALSE)="YES",VLOOKUP(ROUND(ROUND(AM138,1)-AM138,2),Round,2,FALSE)+VLOOKUP(AE138,Group,6,FALSE),0) -> 0 | AO138: =IF(VLOOKUP(AE138,Group,7,FALSE)="",0,ROUND(AM138-0.04999,1)-AM138+AP138) -> 0 | AP138: =IF(VLOOKUP(AE138,Group,7,FALSE)="","",VLOOKUP(AE138,Group,7,FALSE)) ->  | AR138: X
AR139: X
B140: A5 | C140: Design Strip | F140: 3 mm x 3' x 2.5mm | H140: 3' Design Strip | P140: 25 EA/CTN | T140: 1.45 | U140: EA | X140: 1.45 | Y140: =+Instructions!$C$17 -> 0 | AB140: =+T140 -> 1.45 | AC140: =(AF140-AB140)/AF140 -> 0 | AE140: 5 | AF140: =SUM(AM140:AO140)+AD140 -> 1.45 | AI140: =+AF140 -> 1.45 | AJ140: =+U140 -> EA | AM140: =ROUND(AB140/(1-VLOOKUP(AE140,Group,2,FALSE)),2) -> 1.45 | AN140: =IF(VLOOKUP(AE140,Group,5,FALSE)="YES",VLOOKUP(ROUND(ROUND(AM140,1)-AM140,2),Round,2,FALSE)+VLOOKUP(AE140,Group,6,FALSE),0) -> 0 | AO140: =IF(VLOOKUP(AE140,Group,7,FALSE)="",0,ROUND(AM140-0.04999,1)-AM140+AP140) -> 0 | AP140: =IF(VLOOKUP(AE140,Group,7,FALSE)="","",VLOOKUP(AE140,Group,7,FALSE)) ->  | AR140: X
AR141: X
AR142: X
D143: SETTING MATERIALS | AR143: X
AR144: X
D145: DRYSET ADHESIVE | P145: Item # Lookup: | Q145: COSM | AR145: X
AR146: X
B147: A7 | C147: Setting Material | F147: 1 Gallon | H147: Karndean DrySet - One Coat-Roller applied LVT Adhesive | Q147: Stock | R147: a | T147: 83.3 | U147: EA | X147: 83.3 | Y147: =+Instructions!$D$17 -> 0 | AB147: =+T147 -> 83.3 | AC147: =(AF147-AB147)/AF147 -> 0 | AE147: 7 | AF147: =SUM(AM147:AO147)+AD147 -> 83.3 | AI147: =+AF147 -> 83.3 | AJ147: =+U147 -> EA | AM147: =ROUND(AB147/(1-VLOOKUP(AE147,Group,2,FALSE)),2) -> 83.3 | AN147: =IF(VLOOKUP(AE147,Group,5,FALSE)="YES",VLOOKUP(ROUND(ROUND(AM147,1)-AM147,2),Round,2,FALSE)+VLOOKUP(AE147,Group,6,FALSE),0) -> 0 | AO147: =IF(VLOOKUP(AE147,Group,7,FALSE)="",0,ROUND(AM147-0.04999,1)-AM147+AP147) -> 0 | AP147: =IF(VLOOKUP(AE147,Group,7,FALSE)="","",VLOOKUP(AE147,Group,7,FALSE)) ->  | AR147: X
B148: A7 | C148: Setting Material | F148: 4 Gallon | H148: Karndean DrySet - One Coat-Roller applied LVT Adhesive | Q148: Stock | R148: a | T148: 305.15 | U148: EA | X148: 305.15 | Y148: =+Instructions!$D$17 -> 0 | AB148: =+T148 -> 305.15 | AC148: 0 | AE148: 7 | AF148: 305.15 | AI148: 305.15 | AJ148: =+U148 -> EA | AM148: 305.15 | AN148: 0 | AO148: 0 | AR148: X
AR149: X
E150: Note: | F150: a) Approximate Coverage: 350-450 SF per Gallon | AR150: X
AR151: X
D152: UNDERLAYMENT | P152: Item # Lookup: | Q152: COSM | AR152: X
AR153: X
B154: A7 | C154: Setting Material | F154: 100 SF Roll | H154: Karndean Quiet Choice LVT Acoustic Underlayment | T154: 62.1 | U154: EA | X154: 62.1 | Y154: =+Instructions!$D$17 -> 0 | AB154: =+T154 -> 62.1 | AC154: =(AF154-AB154)/AF154 -> 0 | AE154: 7 | AF154: =SUM(AM154:AO154)+AD154 -> 62.1 | AI154: =+AF154 -> 62.1 | AJ154: =+U154 -> EA | AM154: =ROUND(AB154/(1-VLOOKUP(AE154,Group,2,FALSE)),2) -> 62.1 | AN154: =IF(VLOOKUP(AE154,Group,5,FALSE)="YES",VLOOKUP(ROUND(ROUND(AM154,1)-AM154,2),Round,2,FALSE)+VLOOKUP(AE154,Group,6,FALSE),0) -> 0 | AO154: =IF(VLOOKUP(AE154,Group,7,FALSE)="",0,ROUND(AM154-0.04999,1)-AM154+AP154) -> 0 | AP154: =IF(VLOOKUP(AE154,Group,7,FALSE)="","",VLOOKUP(AE154,Group,7,FALSE)) ->  | AR154: X
B155: A7 | C155: Setting Material | F155: Kit | H155: Kovara 95 | K155: 1 Kovara 95 roll (720sf) + 1 roll 2" GREY tape | T155: 1057.05 | U155: EA | X155: 1057.05 | Y155: =+Instructions!$D$17 -> 0 | AB155: =+T155 -> 1057.05 | AC155: 0 | AE155: 7 | AF155: 1057.05 | AI155: 1057.05 | AJ155: =+U155 -> EA | AM155: 1057.05 | AN155: 0 | AO155: 0 | AR155: X
B156: A7 | C156: Setting Material | F156: Kit | H156: Kovara MBX | K156: 1 Kovara MBX roll (720 sf) + 3 rolls tape (2-4" and 1-2-1/2") | T156: 2617.85 | U156: EA | X156: 2617.85 | Y156: =+Instructions!$D$17 -> 0 | AB156: =+T156 -> 2617.85 | AC156: 0 | AE156: 7 | AF156: 2617.85 | AI156: 2617.85 | AJ156: =+U156 -> EA | AM156: 2617.85 | AN156: 0 | AO156: 0 | AR156: X
AR157: X
AR158: X
D159: CARE & MAINTENANCE | AR159: X
AR160: X
D161: CLEANING | P161: Item # Lookup: | Q161: COCM | AR161: X
AR162: X
B163: A6 | C163: Care & Maintenance | F163: Kit | H163: Karndean Floor Care Kit | T163: 62.45 | U163: EA | X163: 62.45 | Y163: =+Instructions!$E$17 -> 0 | AB163: =+T163 -> 62.45 | AC163: =(AF163-AB163)/AF163 -> 0 | AE163: 6 | AF163: =SUM(AM163:AO163)+AD163 -> 62.45 | AI163: =+AF163 -> 62.45 | AJ163: =+U163 -> EA | AM163: =ROUND(AB163/(1-VLOOKUP(AE163,Group,2,FALSE)),2) -> 62.45 | AN163: =IF(VLOOKUP(AE163,Group,5,FALSE)="YES",VLOOKUP(ROUND(ROUND(AM163,1)-AM163,2),Round,2,FALSE)+VLOOKUP(AE163,Group,6,FALSE),0) -> 0 | AO163: =IF(VLOOKUP(AE163,Group,7,FALSE)="",0,ROUND(AM163-0.04999,1)-AM163+AP163) -> 0 | AP163: =IF(VLOOKUP(AE163,Group,7,FALSE)="","",VLOOKUP(AE163,Group,7,FALSE)) ->  | AR163: X
I164: Includes: | J164: Clean 750ml, Remove 750 ml, Refresh 750 ml, | AR164: X
J165: Floor protector pack, Refresh Pas, Remove Pad, | AR165: X
J166: Applicator, and Floor Care Guide | AR166: X
B167: A6 | C167: Care & Maintenance | F167: 750 ml | H167: Karndean Routine Cleaner | Q167: Stock | T167: 6.35 | U167: EA | X167: 6.35 | Y167: =+Instructions!$E$17 -> 0 | AB167: =+T167 -> 6.35 | AC167: 0 | AE167: 6 | AF167: =SUM(AM167:AO167)+AD167 -> 6.35 | AI167: =+AF167 -> 6.35 | AJ167: =+U167 -> EA | AM167: =ROUND(AB167/(1-VLOOKUP(AE167,Group,2,FALSE)),2) -> 6.35 | AN167: =IF(VLOOKUP(AE167,Group,5,FALSE)="YES",VLOOKUP(ROUND(ROUND(AM167,1)-AM167,2),Round,2,FALSE)+VLOOKUP(AE167,Group,6,FALSE),0) -> 0 | AO167: =IF(VLOOKUP(AE167,Group,7,FALSE)="",0,ROUND(AM167-0.04999,1)-AM167+AP167) -> 0 | AR167: X
B168: A6 | C168: Care & Maintenance | F168: 5 Liter | H168: Karndean Routine Cleaner | T168: 24.05 | U168: EA | X168: 24.05 | Y168: =+Instructions!$E$17 -> 0 | AB168: =+T168 -> 24.05 | AC168: 0 | AE168: 6 | AF168: 24.05 | AI168: 24.05 | AJ168: =+U168 -> EA | AM168: 24.05 | AN168: 0 | AO168: 0 | AR168: X
AR169: X
AR170: X
AR171: X
AR172: X
AR173: X
AR174: X
AR175: X
AR176: X
AR177: X
AR178: X
AR179: X
AR180: X
AR181: X
AR182: X
AR183: X
AR184: X
AR185: X
AR186: X
AR187: X
AR188: X
AR189: X
AR190: X
AR191: X
D192: This price list is available electronically on an Excel spreadsheet at www.conestogatile.com/pricelists. | AR192: X
AR193: X
A194: X | C194: X | D194: X | E194: X | F194: X | G194: X | H194: X | I194: X | J194: X | K194: X | L194: X | M194: X | N194: X | O194: X | P194: X | Q194: X | R194: X | S194: X | T194: X | U194: X | V194: X | W194: X | X194: X | Y194: X | Z194: X | AA194: X | AB194: X | AC194: X | AD194: X | AE194: X | AF194: X | AG194: X | AH194: X | AI194: X | AJ194: X | AK194: X | AL194: X | AM194: X | AN194: X | AO194: X | AP194: X | AQ194: X | AR194: X
E196: $.05 Round Matrix
E197: -0.04 | F197: 0.01
E198: -0.03 | F198: 0.02
E199: -0.02 | F199: 0.03
E200: -0.01 | F200: -0.01
E201: 0 | F201: 0
E202: 0.01 | F202: 0.01
E203: 0.02 | F203: 0.02
E204: 0.03 | F204: 0.03
E205: 0.04 | F205: -0.01
... 1 more rows

Sheet Websites
A1: Easy Access Website links
A3: ConestogaTile's Website | B3: www.conestogatile.com
A5: Manufacturer's Home Page
A8: Product | B8: Direct Website Link

Sheet Changes
A1: Date
A2: Announced | B2: Series | C2: Description
A4: New Products
A5: 2019-07-01 | B5: Bel Air | C5: Glue Down
A6: 2019-07-01 | B6: Blossom Hill | C6: Glue Down & Loose Lay
A7: 2019-07-01 | B7: Landis Valley | C7: Rigid Core
A8: 2019-07-01 | B8: Pheasant Hill | C8: Glue Down
A9: 2020-08-01 | B9: Bellevue Park | C9: Rigid Core - SPC
A10: 2020-08-01 | B10: Bloomingdale | C10: Rigid Core - WPC
A11: 2020-08-01 | B11: Del Ray | C11: Rigid Core - WPC
A12: 2020-08-01 | B12: Federal Hill | C12: Rigid Core - SPC
A13: 2021-03-09 | B13: Blossom Hill | C13: Rigid Core added and is available in all 10 Blossom Hill colors.
A14: 2023-08-14 | B14: Bloomingdale | C14: Color COBLSED Sedona in the 9" x 60" x 7.0mm 20mil Rigid Core - WPC plank format added.
A15: 2023-08-14 | B15: Federal Hill | C15: Colors COFHESP Espresso and COFHHEM Hemlock in the 7" x 48" x 5.0mm 20mil Rigid Core - SPC plank format added.
A16: 2023-08-14 | B16: Skyline Drive | C16: Rigid Core - SPC
A17: 2023-08-14 | B17: Susquehanna | C17: Rigid Core - SPC
A18: 2023-11-01 | B18: Michaux | C18: Rigid Core
A19: 2023-11-01 | B19: Patapsco | C19: Rigid Core
A20: 2023-11-01 | B20: Shenandoah | C20: Rigid Core
A23: Discontinued Products
A24: 2021-03-09 | B24: Landis Valley | C24: Entire Series.
A25: 2022-06-01 | B25: Pheasant Hill | C25: Colors CONBU109 Light Bamboo and CONBU110 Midtone Bamboo in the 4" x 36" x 2.5mm 20mil Glue-Down plank format only.
A26: 2023-02-10 | B26: Bellevue Park | C26: Entire Series.
A27: 2023-02-10 | B27: Bloomingdale | C27: Colors COBLHAR Harbor Fog and COBLWHI Whispering Wheat only in the 9" x 60" x 7.0mm format.
A28: 2023-02-10 | B28: Federal Hill | C28: Colors COFHJOS Joshua Tree and COFHRUS Rustic Slate only in the 7" x 48" x 6.0mm format.
A29: 2023-08-14 | B29: Del Ray | C29: Color CODRTIM Timberland in the 7" x 48" x 7.5mm 20mil Rigid Core - WPC plank format only.
A30: 2024-02-06 | B30: Bel Air | C30: Entire Series.
A31: 2024-02-06 | B31: Blossom Hill | C31: Entire Series.
A32: 2024-02-06 | B32: Pheasant Hill | C32: Entire Series.
A36: Changes:
A37: 2023-08-14 | B37: Del Ray | C37: Packaging is changing from 18.91 SF/CTN to 33.09 SF/CTN as inventory with old packaging is depleted.
A38: 2023-08-14 | B38: Federal Hill | C38: This item is transitioning from 6.0mm to 5.0mm in thickness as inventories of the old thickness are depleted. Packaging of the 7" x 48" x 5.0mm will be 23.64 SF/CTN.
